bitfinex-derivatives/quotes_ETHF0:USTF0_20220106
["timestamp","ask_amount","ask_price","bid_price","bid_amount"]
[1641444673399,3.43703323,3435.0,3434.7,1.5]
[1641444673598,3.43703323,3435.0,3434.5,0.762094]
[1641444673999,3.43703323,3435.0,3434.5,0.6297]
[1641444674401,15.86703323,3435.0,3433.9,1.15830876]
[1641444674601,15.45500986,3435.0,3433.9,1.15830876]
[1641444674801,12.43,3435.0,3433.9,1.15830876]
[1641444675000,2.00479,3434.5,3433.9,1.15830876]
[1641444675201,2.00479,3434.5,3433.9,0.252394]
[1641444676000,2.00479,3434.5,3434.3,1.5]
[1641444676200,2.00479,3434.5,3434.4,0.229991]
[1641444677201,2.00479,3434.5,3434.3,1.5]
[1641444677501,2.00479,3434.5,3434.1,0.132394]
[1641444678103,2.00479,3434.5,3434.3,1.5]
[1641444678304,2.00479,3434.5,3434.4,0.229991]
[1641444678903,2.00479,3434.5,3434.4,0.855891]
[1641444679102,2.00479,3434.8,3434.4,0.988285]
[1641444679503,5.467,3435.2,3434.4,1.60609243]
[1641444679703,5.467,3435.2,3434.9,1.5]
[1641444679903,2.00479,3435.3,3435.1,1.5]
[1641444680103,2.00479,3435.3,3434.7,0.132394]
[1641444680303,2.00479,3435.3,3434.7,1.632394]
[1641444681504,2.00479,3435.3,3434.7,0.132394]
[1641444682106,2.00479,3435.3,3434.8,0.61780743]
[1641444682307,2.00479,3435.3,3434.9,0.132394]
[1641444683910,2.00479,3435.3,3435.2,1.5]
[1641444684109,2.00479,3435.3,3435.2,1.862385]
[1641444685313,2.00479,3435.3,3435.2,0.362385]
[1641444686313,2.00479,3435.3,3435.2,1.29409211]
[1641444686716,2.00479,3435.3,3435.2,1.91175089]
[1641444687517,3.43703323,3436.3,3435.2,4.17385089]
[1641444687715,3.43703323,3436.3,3436.2,1.5]
[1641444687914,3.43703323,3436.3,3436.2,2.677285]
[1641444688116,3.02500986,3436.3,3436.2,2.677285]
[1641444688617,3.02500986,3436.3,3436.2,3.83669834]
[1641444689616,3.02500986,3436.3,3436.2,1.15941334]
[1641444689819,3.02500986,3436.3,3436.2,1.6056467]
[1641444690024,2.00479,3436.9,3436.2,1.8356377]
[1641444690525,2.00479,3436.9,3436.2,1.9680317]
[1641444691226,2.00479,3436.5,3436.2,1.9680317]
[1641444691424,2.00479,3436.5,3436.2,1.35037292]
[1641444691628,2.00479,3436.5,3436.2,0.132394]
[1641444691824,2.00479,3436.5,3436.3,0.229991]
[1641444692025,3.46000644,3436.5,3435.4,2.00479]
[1641444692225,3.46000644,3436.5,3435.2,1.5]
[1641444692226,2.00479,3436.5,3435.2,1.5]
[1641444692427,12.43,3436.4,3435.2,1.5]
[1641444692627,2.00479,3436.5,3435.2,1.5]
[1641444693028,2.00479,3435.4,3435.2,1.5]
[1641444694034,2.00479,3435.4,3435.3,0.229991]
[1641444694234,2.00479,3435.4,3435.3,1.5]
[1641444694633,2.00479,3435.4,3435.2,0.132394]
[1641444694833,2.00479,3435.4,3435.3,1.5]
[1641444695333,2.00479,3435.4,3434.7,1.5]
[1641444695534,2.00479,3435.4,3434.2,3.50479]
[1641444695733,12.43,3435.3,3434.2,1.5]
[1641444695934,12.43,3435.3,3433.8,0.98798792]
[1641444696134,2.00479,3435.4,3433.8,0.98798792]
[1641444696735,1.45575029,3435.2,3434.0,1.5]
[1641444697233,2.00479,3434.6,3433.9,1.10798792]
[1641444697432,2.00479,3434.6,3434.5,1.5]
[1641444697633,2.00479,3435.4,3434.5,3.870991]
[1641444697834,2.00479,3435.4,3435.2,1.5]
[1641444699035,2.00479,3435.4,3435.1,1.5]
[1641444699234,2.00479,3435.4,3435.1,1.632394]
[1641444699435,2.00479,3435.4,3435.2,0.229991]
[1641444699936,2.00479,3435.4,3435.1,0.8251]
[1641444700837,2.00479,3435.4,3434.5,2.00479]
[1641444701036,2.00479,3434.9,3433.8,4.99756792]
[1641444701237,2.885,3438.4,3434.8,3.0]
[1641444701440,0.4457,3437.3,3436.3,1.5]
[1641444701641,0.4457,3437.3,3436.3,0.7392]
[1641444701937,12.43,3437.1,3436.3,0.7392]
[1641444702840,12.43,3436.9,3435.3,1.5]
[1641444703038,2.00479,3436.4,3435.6,2.00479]
[1641444703238,14.43479,3436.4,3435.6,2.00479]
[1641444704843,25.19848999,3436.4,3435.3,0.94636539]
[1641444705042,2.00479,3435.8,3435.2,2.00479]
[1641444705243,2.00479,3435.8,3434.7,2.00479]
[1641444705244,12.43,3435.7,3434.7,2.00479]
[1641444705442,17.954255,3435.7,3434.7,2.00479]
[1641444705742,1.45578843,3435.1,3434.7,2.00479]
[1641444705945,17.954255,3435.7,3434.7,2.00479]
[1641444706144,4.658068,3435.0,3434.7,3.50479]
[1641444706342,7.47179,3435.8,3434.9,1.5]
[1641444706543,7.47179,3435.8,3434.7,2.00479]
[1641444706746,19.90179,3435.8,3435.2,1.5]
[1641444707243,19.90179,3435.8,3435.2,0.132394]
[1641444707244,2.00479,3435.3,3435.2,0.132394]
[1641444707442,2.00479,3435.3,3435.2,1.862385]
[1641444707942,2.00479,3435.8,3435.2,1.862385]
[1641444708142,2.00479,3435.8,3435.2,1.061285]
[1641444708342,1.45496237,3437.1,3435.7,1.5]
[1641444708543,5.467,3437.3,3436.6,1.5]
[1641444708745,5.467,3437.3,3436.3,0.5475]
[1641444709143,2.00479,3436.4,3436.3,0.5475]
[1641444709345,2.00479,3436.4,3436.3,0.777491]
[1641444709844,2.00479,3436.4,3436.3,0.5475]
[1641444710043,2.00479,3436.4,3436.3,0.229991]
[1641444711046,2.00479,3436.4,3436.3,0.362385]
[1641444711246,5.467,3437.3,3436.3,3.362385]
[1641444711446,5.467,3437.3,3436.7,1.5]
[1641444711646,5.467,3437.3,3436.8,0.132394]
[1641444711848,12.43,3437.8,3436.8,0.132394]
[1641444712047,1.45478245,3437.5,3436.3,0.576]
[1641444712249,1.45478245,3437.5,3436.4,1.5]
[1641444712448,12.43,3437.8,3436.4,1.5]
[1641444713050,1.45478457,3437.5,3437.1,1.5]
[1641444713249,2.00479,3437.2,3437.1,1.5]
[1641444713449,2.00479,3437.2,3437.1,1.729991]
[1641444713651,2.00479,3437.2,3437.0,0.132394]
[1641444714050,2.00479,3437.2,3436.5,1.32964367]
[1641444714252,14.43479,3437.2,3436.4,2.00479]
[1641444714554,2.00479,3437.2,3436.4,2.00479]
[1641444715552,14.43479,3437.2,3436.4,2.00479]
[1641444715751,14.43479,3437.2,3436.3,0.98798792]
[1641444715951,5.79020119,3437.6,3436.8,1.5]
[1641444716151,3.78541119,3437.6,3437.5,1.5]
[1641444716353,4.24041046,3437.6,3437.5,2.331391]
[1641444716552,4.24041046,3437.6,3437.5,0.6014]
[1641444716954,4.24041046,3437.6,3437.5,2.1014]
[1641444717255,1.46732662,3438.3,3437.5,7.92706044]
[1641444717452,1.46732662,3438.3,3438.2,1.5]
[1641444717652,1.46732662,3438.3,3438.2,2.511894]
[1641444717852,1.46732662,3438.3,3438.2,2.3795]
[1641444718052,1.46732662,3438.3,3438.2,2.609491]
[1641444718453,4.39525795,3438.7,3438.2,2.609491]
[1641444718855,4.39525795,3438.7,3438.2,0.8795]
[1641444719052,4.39525795,3438.7,3437.5,4.00958]
[1641444719053,12.43,3438.6,3437.9,1.5]
[1641444719254,1.45443122,3438.3,3437.5,4.00958]
[1641444719455,5.08155795,3438.7,3438.2,1.5]
[1641444719654,5.08155795,3438.7,3437.9,1.5]
[1641444719856,5.08155795,3438.7,3438.1,1.5]
[1641444720055,0.6863,3438.7,3438.3,1.5]
[1641444720258,0.6863,3438.7,3437.9,1.5]
[1641444720455,2.58539,3439.4,3437.9,1.5]
[1641444720657,1.45419222,3438.9,3437.9,1.5]
[1641444721055,1.4543741,3438.5,3437.9,1.5]
[1641444721257,12.43,3438.4,3438.0,2.00479]
[1641444721457,0.7149,3438.5,3438.0,2.00479]
[1641444721856,0.7149,3438.5,3438.4,1.5]
[1641444722055,0.7149,3438.5,3438.0,2.00479]
[1641444722457,0.7149,3438.5,3437.5,2.99277792]
[1641444722857,4.653868,3438.4,3437.5,2.99277792]
[1641444723056,1.4547761,3437.6,3437.5,2.99277792]
[1641444723257,0.651,3437.6,3437.5,2.00479]
[1641444723457,2.1057761,3437.6,3437.5,2.00479]
[1641444724458,14.5357761,3437.6,3437.5,2.00479]
[1641444724658,0.651,3437.6,3437.5,2.00479]
[1641444724861,12.43,3437.8,3437.5,2.00479]
[1641444725060,1.45478457,3437.6,3437.5,2.00479]
[1641444725458,4.40047679,3438.1,3437.5,5.234781]
[1641444725660,4.40047679,3438.1,3438.0,2.95346936]
[1641444725860,4.40047679,3438.1,3438.0,1.5]
[1641444726058,4.40047679,3438.1,3438.0,1.632394]
[1641444726258,4.40047679,3438.1,3438.0,1.862385]
[1641444726660,4.40047679,3438.1,3438.0,2.62619775]
[1641444727060,4.40047679,3438.1,3438.0,1.862385]
[1641444727259,4.40047679,3438.1,3438.0,3.867175]
[1641444727459,2.00479,3438.9,3438.0,4.48438561]
[1641444727762,2.00479,3438.9,3438.4,1.5]
[1641444728160,2.00479,3438.9,3438.4,0.132394]
[1641444728462,2.00479,3438.9,3438.4,1.632394]
[1641444728660,2.00479,3438.9,3438.4,0.132394]
[1641444728861,3.0,3439.5,3438.8,1.5]
[1641444729063,3.0,3439.5,3438.9,0.132394]
[1641444729262,3.0,3439.5,3439.0,2.00479]
[1641444729661,3.0,3439.5,3439.1,0.132394]
[1641444730267,3.0,3439.5,3439.4,1.5]
[1641444730465,3.0,3439.5,3439.4,1.862385]
[1641444731172,3.0,3439.5,3439.4,3.867175]
[1641444731965,3.0,3439.5,3439.4,3.50479]
[1641444732167,3.0,3439.5,3439.4,3.734781]
[1641444732367,3.0,3439.5,3439.4,3.50479]
[1641444733067,3.0,3439.5,3439.4,3.734781]
[1641444733470,2.00479,3440.8,3439.4,5.234781]
[1641444733669,2.00479,3440.8,3440.2,1.5]
[1641444733872,2.00479,3440.8,3440.3,0.132394]
[1641444734071,2.00479,3440.8,3440.7,1.5]
[1641444734270,3.18353849,3441.5,3440.7,1.729991]
[1641444734470,3.18353849,3441.5,3441.3,1.5]
[1641444734670,3.18353849,3441.5,3441.3,2.3417]
[1641444734869,3.18353849,3441.5,3441.4,0.132394]
[1641444735069,3.18353849,3441.5,3441.4,0.362385]
[1641444735471,3.18353849,3441.5,3441.3,2.3417]
[1641444735669,2.00479,3441.6,3441.1,1.5]
[1641444735869,2.00479,3441.6,3440.8,2.00479]
[1641444736068,4.29149,3441.6,3440.8,2.00479]
[1641444736269,12.43,3441.5,3440.8,2.00479]
[1641444736469,17.07954,3441.5,3440.8,2.00479]
[1641444736870,17.07954,3441.5,3440.8,9e-05]
[1641444737068,1.4999,3441.0,3438.9,1.5]
[1641444737271,12.43,3439.9,3439.2,2.00479]
[1641444737471,13.2129,3439.9,3439.2,2.00479]
[1641444737969,0.7829,3439.9,3439.2,2.137184]
[1641444738569,2.00479,3440.0,3439.2,3.18981612]
[1641444738970,2.00479,3440.4,3439.2,3.18981612]
[1641444739169,2.00479,3440.4,3439.9,2.00479]
[1641444740171,61.5608,3441.8,3440.0,0.132394]
[1641444740569,1.4999,3441.0,3439.9,2.00479]
[1641444740772,4.650284,3441.2,3439.9,2.00479]
[1641444740970,12.43,3440.8,3439.9,2.00479]
[1641444741269,4.650689,3440.7,3439.9,2.00479]
[1641444741472,1.4999,3440.3,3439.8,2.00479]
[1641444741669,1.4999,3440.2,3437.7,63.5145]
[1641444741872,12.43,3440.1,3438.0,1.3178509]
[1641444742069,12.43,3440.1,3438.2,0.97439805]
[1641444742269,4.652312,3440.0,3438.2,0.97439805]
[1641444742469,17.082312,3440.0,3438.5,1.5]
[1641444742674,4.652312,3440.0,3438.5,0.8805]
[1641444742870,4.652379,3440.5,3438.5,0.8805]
[1641444743071,4.652177,3439.9,3438.5,0.8805]
[1641444743274,4.652177,3439.9,3439.2,2.00479]
[1641444743472,2.00479,3440.0,3439.3,0.132394]
[1641444745075,1.45325602,3441.1,3439.3,2.352394]
[1641444745274,2.00479,3440.6,3439.8,2.00479]
[1641444745980,1.4999,3440.4,3439.8,2.00479]
[1641444746191,2.95372647,3439.9,3437.9,1.3178509]
[1641444746376,1.4999,3439.5,3437.9,1.3178509]
[1641444746575,1.4999,3439.3,3437.9,1.3178509]
[1641444746876,2.03552647,3439.9,3437.9,1.3178509]
[1641444746877,12.43,3439.8,3437.9,1.3178509]
[1641444747076,1.4999,3439.4,3437.9,1.3178509]
[1641444747276,2.00479,3438.8,3438.0,2.00479]
[1641444747479,15.31659,3438.8,3438.0,2.00479]
[1641444747879,13.9299,3438.7,3438.0,2.00479]
[1641444748078,1.4999,3438.4,3437.7,1.3178509]
[1641444748277,13.9299,3438.7,3437.7,1.3178509]
[1641444748480,1.4999,3438.7,3437.7,1.3178509]
[1641444748679,1.4999,3438.4,3437.7,1.3178509]
[1641444748876,1.4999,3438.1,3437.7,1.3178509]
[1641444749276,2.00479,3437.9,3437.7,1.3178509]
[1641444749880,2.00479,3438.8,3437.7,1.3178509]
[1641444750085,2.00479,3438.8,3438.4,1.5]
[1641444750280,2.00479,3438.8,3438.4,0.672594]
[1641444750679,5.467,3440.0,3438.7,2.95324546]
[1641444750882,6.68731637,3441.5,3439.7,1.5]
[1641444751083,12.43,3441.3,3439.8,0.132394]
[1641444751279,3.18353849,3439.9,3439.8,0.132394]
[1641444751478,3.18353849,3439.9,3439.8,0.362385]
[1641444751679,3.18353849,3439.9,3439.8,1.6435096]
[1641444752480,3.18353849,3439.9,3439.8,1.5111156]
[1641444753082,3.18353849,3439.9,3439.8,2.12805823]
[1641444753280,1.4999,3441.2,3439.8,6.13763823]
[1641444753281,3.18353849,3440.8,3439.8,6.13763823]
[1641444753481,15.61353849,3440.8,3439.8,5.90764723]
[1641444753689,1.4999,3440.4,3439.8,2.62173263]
[1641444753882,1.45343133,3440.7,3439.8,2.62173263]
[1641444754481,15.61353849,3440.8,3439.8,2.62173263]
[1641444754682,3.97942311,3440.6,3439.8,2.00479]
[1641444754884,3.18353849,3440.3,3439.8,2.00479]
[1641444755283,12.43,3440.2,3439.8,2.00479]
[1641444755482,5.18832849,3440.3,3439.8,2.00479]
[1641444756287,2.00479,3440.3,3439.8,2.00479]
[1641444756484,2.00479,3440.3,3439.9,0.132394]
[1641444756684,3.18353849,3440.6,3440.2,1.5]
[1641444756886,3.18353849,3440.6,3440.5,1.5]
[1641444757084,3.18353849,3440.6,3440.5,1.862385]
[1641444757284,3.18353849,3440.6,3440.5,7.32457294]
[1641444757884,3.18353849,3441.4,3440.5,5.871965]
[1641444758286,3.18353849,3441.4,3440.6,1.32764183]
[1641444758685,3.18353849,3441.4,3440.7,0.132394]
[1641444758887,3.18353849,3441.4,3440.6,1.32764183]
[1641444759186,3.18353849,3441.4,3440.6,1.9443081]
[1641444759387,3.18353849,3441.7,3441.3,2.00479]
[1641444759987,3.18353849,3441.7,3441.3,2.137184]
[1641444760387,3.18353849,3441.7,3441.4,1.45013272]
[1641444760788,4.68343849,3441.7,3441.3,2.00479]
[1641444760987,1.45303219,3441.6,3441.3,2.00479]
[1641444761196,3.98363849,3441.7,3441.3,2.00479]
[1641444761392,0.8001,3441.7,3441.3,2.00479]
[1641444762188,2.00479,3441.8,3441.3,2.00479]
[1641444763188,3.18353849,3441.7,3441.3,2.00479]
[1641444763789,15.61353849,3441.7,3441.3,2.00479]
[1641444763992,19.5929616,3441.7,3441.3,2.00479]
[1641444764188,15.61353849,3441.4,3441.3,2.00479]
[1641444764990,3.18353849,3441.4,3441.3,2.00479]
[1641444765392,3.18353849,3441.6,3441.3,2.234781]
[1641444765591,3.18353849,3441.6,3441.3,2.00479]
[1641444765891,1.45317999,3441.4,3440.8,0.98657084]
[1641444766292,12.43,3441.5,3440.8,0.98657084]
[1641444767091,12.43,3441.5,3440.9,0.132394]
[1641444767291,3.18353849,3441.6,3440.9,0.132394]
[1641444767493,3.18353849,3441.6,3441.5,2.00479]
[1641444767691,3.18353849,3441.6,3441.5,3.099075]
[1641444767992,4.40047679,3441.7,3441.5,3.099075]
[1641444769094,4.40047679,3441.7,3441.5,2.869084]
[1641444769292,13.9299,3441.9,3441.5,2.00479]
[1641444769494,13.9299,3441.9,3441.2,0.98657084]
[1641444769691,14.7668,3441.9,3441.2,0.98657084]
[1641444770595,13.2669,3441.9,3441.0,1.31539685]
[1641444770796,13.2669,3441.9,3440.8,0.98657084]
[1641444771198,14.7668,3441.9,3440.8,0.98657084]
[1641444771399,12.43,3441.4,3440.8,0.98657084]
[1641444771600,4.40047679,3442.2,3441.3,1.5]
[1641444771798,4.40047679,3442.2,3441.5,1.5]
[1641444771999,4.40047679,3442.2,3441.6,0.132394]
[1641444773000,12.43,3442.1,3441.6,0.132394]
[1641444773199,13.2579,3442.1,3441.6,0.132394]
[1641444773403,13.2579,3442.1,3441.8,2.00479]
[1641444773601,0.8279,3442.1,3441.8,2.00479]
[1641444774001,0.8279,3442.1,3441.8,2.137184]
[1641444774204,12.43,3442.5,3441.8,2.137184]
[1641444774501,2.00479,3442.6,3441.8,2.137184]
[1641444774702,4.40047679,3442.5,3441.8,2.137184]
[1641444775802,12.43,3442.4,3441.8,2.137184]
[1641444776407,13.3159,3442.4,3441.8,2.137184]
[1641444776809,0.8859,3442.4,3442.2,1.5]
[1641444777104,4.40047679,3442.8,3442.2,1.5]
[1641444777105,4.40047679,3442.8,3442.3,0.362385]
[1641444777505,4.79717091,3443.3,3442.7,3.50479]
[1641444777706,4.79717091,3443.3,3442.8,0.132394]
[1641444777907,4.48143829,3443.3,3442.8,0.132394]
[1641444778108,4.48143829,3443.3,3442.7,2.00479]
[1641444778307,5.13873829,3443.3,3442.7,2.00479]
[1641444778508,5.13873829,3443.3,3442.7,2.137184]
[1641444778907,5.13873829,3443.3,3442.7,3.0246128]
[1641444779510,0.6573,3443.3,3443.1,2.00479]
[1641444780209,1.4999,3443.2,3443.1,2.00479]
[1641444780408,2.95255858,3443.2,3442.2,0.98657084]
[1641444780608,1.4999,3443.0,3442.2,0.98657084]
[1641444781009,1.4999,3442.7,3442.2,0.98657084]
[1641444781410,2.00479,3442.4,3442.2,0.98657084]
[1641444781609,2.72949,3442.4,3442.2,1.21656184]
[1641444781815,0.7247,3442.4,3442.2,1.21656184]
[1641444782010,0.7247,3442.4,3442.3,0.132394]
[1641444782512,0.7247,3442.4,3442.3,0.362385]
[1641444782713,2.00479,3442.7,3442.3,0.362385]
[1641444783111,32.7737,3443.6,3442.3,0.362385]
[1641444783312,1.4999,3444.3,3442.3,0.362385]
[1641444783511,2.00479,3443.3,3442.5,2.00479]
[1641444783711,2.00479,3443.3,3442.6,0.132394]
[1641444785611,1.9001,3446.2,3442.8,1.5]
[1641444785814,45.1183,3444.7,3442.8,2.0669]
[1641444786011,76.3385,3444.6,3442.8,0.5669]
[1641444786412,45.3096,3444.6,3442.8,0.5669]
[1641444786613,32.8796,3444.6,3443.1,1.5]
[1641444786812,1.9001,3446.2,3442.8,0.5669]
[1641444786813,12.43,3445.2,3442.8,0.5669]
[1641444787014,12.43,3445.2,3443.2,1.5]
[1641444787212,1.45141041,3445.5,3444.0,1.5]
[1641444787413,2.00479,3446.0,3445.2,3.45549715]
[1641444787612,2.00479,3446.0,3445.3,0.132394]
[1641444788013,2.00479,3446.0,3445.4,1.28480535]
[1641444788214,2.00479,3446.0,3445.5,0.132394]
[1641444788414,2.00479,3446.0,3445.4,1.28480535]
[1641444788818,1.4999,3445.5,3439.5,0.82060319]
[1641444789017,1.45168432,3444.8,3443.0,31.4428]
[1641444789216,1.45168432,3444.8,3443.9,0.98657084]
[1641444789217,0.5497,3444.8,3443.9,0.98657084]
[1641444789416,2.00479,3444.3,3443.9,0.98657084]
[1641444790018,2.00479,3444.3,3444.0,1.42500102]
[1641444790219,2.00479,3444.3,3444.1,0.229991]
[1641444790622,5.20426979,3444.3,3444.1,0.229991]
[1641444790820,3.19947979,3444.3,3444.1,0.229991]
[1641444791219,3.19947979,3444.3,3444.2,0.132394]
[1641444791421,3.99509287,3444.6,3444.2,4.141974]
[1641444791621,4.39460216,3444.8,3444.2,4.141974]
[1641444792020,4.39460216,3444.8,3444.4,1.5]
[1641444792225,4.09437581,3444.7,3444.2,4.00958]
[1641444792522,4.09437581,3444.7,3444.5,0.132394]
[1641444792724,4.09437581,3444.7,3444.6,0.229991]
[1641444792923,4.09437581,3444.7,3444.6,1.32896941]
[1641444793523,4.39460216,3445.0,3444.6,3.33375941]
[1641444793725,4.39460216,3445.0,3444.7,0.132394]
[1641444793924,2.00479,3445.7,3444.8,0.229991]
[1641444795125,1.4999,3445.4,3444.6,3.10376841]
[1641444795324,1.45149889,3445.3,3444.4,0.98657084]
[1641444795524,2.00479,3444.7,3444.4,0.98657084]
[1641444795726,2.74219,3444.7,3444.5,0.229991]
[1641444796026,2.74219,3444.7,3444.4,0.98657084]
[1641444796327,2.74219,3444.7,3443.9,0.98657084]
[1641444796625,1.4999,3444.1,3443.9,0.98657084]
[1641444796826,1.4999,3444.1,3443.7,1.31539685]
[1641444797025,1.4520026,3444.1,3443.7,1.31539685]
[1641444797230,2.74219,3444.7,3443.7,1.31539685]
[1641444797425,2.00479,3443.8,3443.7,1.31539685]
[1641444797626,2.00479,3443.8,3443.4,1.31539685]
[1641444797826,2.00479,3443.8,3443.5,0.132394]
[1641444798626,2.00479,3443.8,3443.6,0.229991]
[1641444798828,2.00479,3443.8,3443.7,0.132394]
[1641444800428,6.1052347,3444.5,3443.7,0.132394]
[1641444801029,2.00479,3444.5,3443.7,0.74849342]
[1641444801431,2.00479,3444.5,3443.8,2.00479]
[1641444801630,2.00479,3444.5,3443.9,0.132394]
[1641444802132,2.00479,3444.5,3443.9,1.44779085]
[1641444803033,2.00479,3444.9,3444.0,1.22851769]
[1641444803533,2.00479,3444.9,3444.3,2.00479]
[1641444803733,2.00479,3444.9,3444.3,2.137184]
[1641444805533,12.43,3444.8,3444.3,0.132394]
[1641444805733,14.64201171,3444.8,3443.9,1.31539685]
[1641444805935,14.64201171,3444.8,3444.0,1.31539685]
[1641444806135,1.4999,3444.5,3444.0,1.31539685]
[1641444806835,16.14191171,3444.8,3444.0,1.31539685]
[1641444807038,1.4999,3444.5,3444.0,1.31539685]
[1641444807235,1.4999,3444.5,3443.5,1.31539685]
[1641444807438,2.00479,3444.1,3443.5,1.31539685]
[1641444807638,2.55709,3444.1,3443.6,0.132394]
[1641444808637,2.00479,3444.9,3443.6,0.132394]
[1641444809441,15.93469,3444.9,3443.8,2.00479]
[1641444809641,1.4999,3444.7,3443.8,2.00479]
[1641444809841,12.43,3444.6,3443.8,2.00479]
[1641444810642,13.9299,3444.6,3443.8,2.00479]
[1641444810841,1.4999,3444.4,3443.8,2.00479]
[1641444811241,1.4999,3444.2,3443.8,2.00479]
[1641444811741,1.45191617,3444.3,3443.8,2.00479]
[1641444812941,13.2727,3444.7,3443.8,2.00479]
[1641444813542,1.45181077,3444.5,3443.8,2.00479]
[1641444813842,4.00958,3444.9,3443.9,0.132394]
[1641444814641,4.00958,3444.9,3444.1,1.5]
[1641444814842,4.00958,3444.9,3444.2,0.93123237]
[1641444815641,2.00479,3444.9,3444.3,2.00479]
[1641444815842,2.00479,3444.9,3444.4,0.132394]
[1641444816544,2.00479,3444.9,3444.3,2.00479]
[1641444816744,2.00479,3444.9,3444.3,2.137184]
[1641444819250,1.45071136,3447.1,3444.8,2.95084606]
[1641444819450,1.45071136,3447.1,3445.9,1.5]
[1641444819751,4.1004447,3447.5,3446.0,4.371965]
[1641444819949,1.4999,3447.4,3446.1,0.99250524]
[1641444820151,4.1004447,3447.5,3446.2,0.132394]
[1641444820750,1.4999,3446.7,3446.1,0.99250524]
[1641444820949,1.4999,3446.2,3445.2,1.45070083]
[1641444821150,14.5333,3446.2,3444.7,1.5]
[1641444821350,14.5333,3446.2,3445.2,0.97600103]
[1641444821351,0.6034,3446.2,3445.2,0.97600103]
[1641444821551,2.1033,3446.2,3445.5,2.00479]
[1641444821750,0.6034,3446.2,3445.5,2.00479]
[1641444821952,2.1033,3446.2,3445.5,2.137184]
[1641444822353,0.6034,3446.2,3445.5,2.137184]
[1641444823151,2.00479,3446.3,3445.5,2.137184]
[1641444823352,3.0,3446.9,3445.5,2.137184]
[1641444823552,12.43,3446.8,3446.3,2.00479]
[1641444824754,3.0,3446.9,3446.3,2.00479]
[1641444824957,3.0,3446.9,3446.4,0.132394]
[1641444825357,1.4999,3446.8,3446.4,0.132394]
[1641444825559,1.4999,3446.8,3446.3,2.00479]
[1641444825958,13.9299,3446.8,3446.3,2.00479]
[1641444827157,12.43,3446.8,3446.3,2.00479]
[1641444827357,1.4999,3446.8,3446.3,2.00479]
[1641444827559,1.4999,3446.7,3446.3,2.00479]
[1641444828560,13.88088816,3446.7,3446.3,2.00479]
[1641444828760,13.88088816,3446.7,3445.5,2.00479]
[1641444828960,14.44078816,3446.7,3445.5,2.00479]
[1641444829161,1.4999,3446.6,3445.5,2.00479]
[1641444829362,14.44078816,3446.7,3445.5,2.00479]
[1641444829563,12.43,3446.3,3445.5,2.00479]
[1641444829861,2.00479,3446.4,3445.6,0.132394]
[1641444830463,1.4999,3446.2,3445.6,0.132394]
[1641444831064,1.4999,3446.2,3445.5,2.00479]
[1641444831464,1.4999,3445.9,3445.5,2.00479]
[1641444831665,0.6925,3445.9,3445.5,2.00479]
[1641444833568,1.45115766,3446.1,3445.5,2.00479]
[1641444834570,12.43,3446.3,3445.5,2.00479]
[1641444837375,13.9299,3446.3,3445.5,2.00479]
[1641444837774,12.43,3446.3,3445.5,2.00479]
[1641444837975,2.00479,3446.4,3445.6,0.132394]
[1641444839277,12.43,3446.3,3445.5,2.00479]
[1641444839478,0.4338,3447.1,3445.6,0.132394]
[1641444839679,38.4477,3447.7,3446.8,4.00958]
[1641444839877,1.4999,3447.4,3444.9,0.7593]
[1641444840076,31.4808,3447.7,3444.9,0.7593]
[1641444840077,1.4999,3447.6,3444.9,0.7593]
[1641444840278,1.4999,3447.3,3444.9,0.7593]
[1641444840477,1.4999,3447.3,3445.3,1.5]
[1641444840677,1.4999,3447.3,3445.0,1.58460103]
[1641444840880,1.4999,3446.6,3445.0,0.97600103]
[1641444841078,15.38075027,3446.8,3445.1,1.37069417]
[1641444841478,3.7747,3446.9,3445.1,1.37069417]
[1641444841678,1.45085659,3446.8,3446.1,2.00479]
[1641444841880,5.77949,3446.9,3446.2,0.132394]
[1641444842279,1.45083764,3446.8,3446.2,0.132394]
[1641444842478,1.4999,3446.7,3446.2,0.132394]
[1641444842679,13.88083764,3446.8,3446.2,0.132394]
[1641444842878,1.4999,3446.7,3446.2,0.132394]
[1641444844779,1.4999,3446.3,3446.1,2.00479]
[1641444845379,1.45112397,3446.2,3446.1,2.00479]
[1641444845580,14.72292397,3446.2,3446.1,2.00479]
[1641444846182,14.72292397,3446.2,3445.8,2.00479]
[1641444846381,1.4999,3446.1,3445.8,2.00479]
[1641444846583,14.72292397,3446.2,3445.8,2.00479]
[1641444849082,13.2718,3446.2,3445.8,2.00479]
[1641444849482,0.8418,3446.2,3445.8,2.00479]
[1641444850782,12.43,3446.4,3445.8,2.00479]
[1641444851386,13.9299,3446.4,3445.8,2.00479]
[1641444851587,12.43,3446.4,3445.8,2.00479]
[1641444851786,12.43,3446.4,3445.3,2.00479]
[1641444851983,1.4999,3445.8,3444.7,1.72592842]
[1641444852183,12.43,3445.5,3444.7,0.97600103]
[1641444852584,1.4999,3444.9,3444.7,0.97600103]
[1641444852784,12.43,3444.8,3444.7,1.03e-06]
[1641444852985,17.074681,3444.8,3444.1,0.57794947]
[1641444853184,1.4999,3444.2,3443.9,1.84848054]
[1641444853385,12.43,3444.1,3444.0,1.49188461]
[1641444853584,17.075693,3444.1,3443.8,0.54778054]
[1641444853784,12.43,3443.8,3443.2,2.7162676]
[1641444853987,12.43,3443.8,3443.2,1.5562676]
[1641444854185,1.4999,3443.5,3443.2,1.5562676]
[1641444854485,12.43,3443.4,3443.2,0.9712676]
[1641444854685,17.076637,3443.4,3443.2,0.9712676]
[1641444854884,1.45236321,3443.3,3443.2,6.76e-05]